[Event "*** MasterClass Titled Tuesday Blitz"]
[Site "Chess.com"]
[Date "2017.10.03"]
[Round "1"]
[White "josiwales"]
[Black "Batica1984"]
[Result "0-1"]
[WhiteElo "2329"]
[BlackElo "2622"]
[TimeControl "180+2"]
[EndTime "13:07:45 PDT"]
[Termination "Batica1984 won by resignation"]

1. e4 {[%clk 0:03:00.8]} 1... d6 {[%clk 0:03:00.4]} 2. d4 {[%clk 0:03:01.5]}
2... Nf6 {[%clk 0:03:01.3]} 3. Nc3 {[%clk 0:03:01.4]} 3... e5 {[%clk 0:03:02.1]}
4. Nf3 {[%clk 0:02:59.4]} 4... Nbd7 {[%clk 0:03:02.9]} 5. g4 {[%clk 0:02:52.7]}
5... d5 {[%clk 0:03:03]} 6. dxe5 {[%clk 0:02:29.2]} 6... Nxe4 {[%clk 0:03:02.2]}
7. Nxd5 {[%clk 0:02:18.4]} 7... Nb6 {[%clk 0:03:02.3]} 8. c4 {[%clk 0:01:56.9]}
8... Bxg4 {[%clk 0:02:54.8]} 9. Be2 {[%clk 0:01:47.4]} 9... c6 {[%clk
0:02:47.3]} 10. Nxb6 {[%clk 0:01:39]} 10... Qxb6 {[%clk 0:02:45.5]} 11. Be3
{[%clk 0:01:39.7]} 11... Bb4+ {[%clk 0:02:44.2]} 12. Kf1 {[%clk 0:01:38.7]}
12... Bh3+ {[%clk 0:02:43.5]} 13. Kg1 {[%clk 0:01:39.8]} 13... Bc5 {[%clk
0:02:37.3]} 14. Bxc5 {[%clk 0:01:29.5]} 14... Qxc5 {[%clk 0:02:37.7]} 15. Qd4
{[%clk 0:01:30.7]} 15... Qxd4 {[%clk 0:02:38.3]} 16. Nxd4 {[%clk 0:01:32.6]}
16... O-O-O {[%clk 0:02:38.9]} 17. Rd1 {[%clk 0:01:26.7]} 17... Rhe8 {[%clk
0:02:32.6]} 18. f4 {[%clk 0:01:26.3]} 18... g5 {[%clk 0:02:28]} 19. Bf3 {[%clk
0:01:23.3]} 19... Nc5 {[%clk 0:02:27.5]} 20. fxg5 {[%clk 0:01:17.5]} 20... Rxe5
{[%clk 0:02:27]} 21. Kf2 {[%clk 0:01:18.8]} 21... Rxg5 {[%clk 0:02:20.2]} 22. b4
{[%clk 0:01:20]} 22... Na4 {[%clk 0:02:17.5]} 23. Rd2 {[%clk 0:01:00.3]} 23...
Nb6 {[%clk 0:02:03.2]} 24. Rc1 {[%clk 0:00:58.6]} 24... c5 {[%clk 0:02:03.9]}
25. bxc5 {[%clk 0:00:59.3]} 25... Rxc5 {[%clk 0:02:04.7]} 26. Kg3 {[%clk
0:00:52.3]} 26... Bd7 {[%clk 0:02:01.5]} 27. Nb3 {[%clk 0:00:49.2]} 27... Rxc4
{[%clk 0:01:58.8]} 28. Rxc4+ {[%clk 0:00:41.2]} 28... Nxc4 {[%clk 0:01:59.5]}
29. Rc2 {[%clk 0:00:43.1]} 29... b5 {[%clk 0:01:58.1]} 30. Nc5 {[%clk
0:00:43.9]} 30... Bf5 {[%clk 0:01:54.8]} 31. Re2 {[%clk 0:00:45]} 31... Kc7
{[%clk 0:01:49]} 32. Kf4 {[%clk 0:00:27]} 32... Kb6 {[%clk 0:01:44.1]} 33. Nb7
{[%clk 0:00:22]} 33... Rd3 {[%clk 0:01:41.3]} 34. Re7 {[%clk 0:00:17.1]} 34...
Bg6 {[%clk 0:01:34.2]} 35. a4 {[%clk 0:00:11.1]} 35... bxa4 {[%clk 0:01:32.9]}
36. Be2 {[%clk 0:00:12.4]} 36... Rd4+ {[%clk 0:01:33.4]} 37. Kg5 {[%clk
0:00:13.7]} 37... a3 {[%clk 0:01:33.8]} 38. Nd8 {[%clk 0:00:12]} 38... Nd6
{[%clk 0:01:26.7]} 39. Re3 {[%clk 0:00:07.4]} 39... Ne4+ {[%clk 0:01:27.2]} 40.
Kh6 {[%clk 0:00:07.5]} 40... Rxd8 {[%clk 0:01:27.5]} 41. Rxa3 {[%clk 0:00:09.1]}
41... Rd2 {[%clk 0:01:28.2]} 42. Ra6+ {[%clk 0:00:09.4]} 42... Kb7 {[%clk
0:01:28.9]} 43. Bb5 {[%clk 0:00:08.9]} 43... Rxh2+ {[%clk 0:01:29.6]} 44. Kg7
{[%clk 0:00:10.8]} 44... Rb2 {[%clk 0:01:30.1]} 45. Bd3 {[%clk 0:00:11.3]} 45...
Nc5 {[%clk 0:01:30]} 0-1

[Event "*** MasterClass Titled Tuesday Blitz"]
[Site "Chess.com"]
[Date "2017.10.03"]
[Round "1"]
[White "Bryakin_Mikhail"]
[Black "Kawhi_Leonard2"]
[Result "0-1"]
[WhiteElo "2501"]
[BlackElo "2238"]
[TimeControl "180+2"]
[EndTime "13:07:45 PDT"]
[Termination "Kawhi_Leonard2 won by resignation"]

1. d4 {[%clk 0:02:59.8]} 1... Nf6 {[%clk 0:03:00.2]} 2. c4 {[%clk 0:02:58.8]}
2... c5 {[%clk 0:03:00.1]} 3. d5 {[%clk 0:02:58.4]} 3... e6 {[%clk 0:02:59.5]}
4. Nc3 {[%clk 0:02:58.3]} 4... exd5 {[%clk 0:03:00.7]} 5. cxd5 {[%clk
0:03:00.2]} 5... d6 {[%clk 0:03:01.2]} 6. Nf3 {[%clk 0:02:59.8]} 6... g6 {[%clk
0:03:02.3]} 7. g3 {[%clk 0:02:58.6]} 7... Bg7 {[%clk 0:03:03]} 8. Bg2 {[%clk
0:02:59.8]} 8... O-O {[%clk 0:03:04.3]} 9. O-O {[%clk 0:03:00.2]} 9... a6 {[%clk
0:03:05.4]} 10. a4 {[%clk 0:02:59]} 10... Nbd7 {[%clk 0:03:06.3]} 11. Bf4 {[%clk
0:02:55]} 11... Qe7 {[%clk 0:03:04.7]} 12. Qc2 {[%clk 0:02:23.2]} 12... Ng4
{[%clk 0:03:01.5]} 13. e4 {[%clk 0:02:04.3]} 13... Nge5 {[%clk 0:02:54]} 14. Nd2
{[%clk 0:02:00]} 14... g5 {[%clk 0:02:50.3]} 15. Be3 {[%clk 0:01:52.1]} 15...
Ng4 {[%clk 0:02:50]} 16. Rae1 {[%clk 0:01:50]} 16... Nde5 {[%clk 0:02:44.6]} 17.
h3 {[%clk 0:01:44.4]} 17... Nxe3 {[%clk 0:02:44.7]} 18. Rxe3 {[%clk 0:01:46.2]}
18... f5 {[%clk 0:02:42.5]} 19. exf5 {[%clk 0:01:17.2]} 19... Bxf5 {[%clk
0:02:42.3]} 20. Qb3 {[%clk 0:01:01.1]} 20... Qd7 {[%clk 0:02:39.6]} 21. Nce4
{[%clk 0:00:33.3]} 21... h6 {[%clk 0:02:33]} 22. Kh2 {[%clk 0:00:19.7]} 22... b5
{[%clk 0:02:31.1]} 23. axb5 {[%clk 0:00:20.2]} 23... axb5 {[%clk 0:02:32.1]} 24.
f3 {[%clk 0:00:16.9]} 24... Bg6 {[%clk 0:02:17.9]} 25. Qd1 {[%clk 0:00:13.1]}
25... Ra2 {[%clk 0:02:14]} 26. Qc1 {[%clk 0:00:09.1]} 26... c4 {[%clk
0:02:11.6]} 27. Qb1 {[%clk 0:00:08.4]} 27... Rfa8 {[%clk 0:02:01.7]} 28. b3
{[%clk 0:00:09.9]} 28... Rxd2 {[%clk 0:01:50.9]} 29. bxc4 {[%clk 0:00:04.6]}
29... bxc4 {[%clk 0:01:50.8]} 30. f4 {[%clk 0:00:06.1]} 30... Raa2 {[%clk
0:01:48.7]} 31. Rg1 {[%clk 0:00:04]} 31... Re2 {[%clk 0:01:23.4]} 32. Qb8+
{[%clk 0:00:03.8]} 32... Kh7 {[%clk 0:01:23.1]} 33. Rxe2 {[%clk 0:00:03.7]}
33... Rxe2 {[%clk 0:01:23]} 34. Nxd6 {[%clk 0:00:04.1]} 34... Nf3+ {[%clk
0:01:19.1]} 35. Kh1 {[%clk 0:00:05.6]} 35... Nxg1 {[%clk 0:01:20]} 36. Kxg1
{[%clk 0:00:07.1]} 36... Rxg2+ {[%clk 0:01:18.4]} 37. Kxg2 {[%clk 0:00:08.3]}
37... gxf4 {[%clk 0:01:18.5]} 38. gxf4 {[%clk 0:00:09.8]} 38... c3 {[%clk
0:01:19.8]} 39. f5 {[%clk 0:00:09.8]} 39... Bh5 {[%clk 0:01:19.2]} 40. Ne4
{[%clk 0:00:08]} 40... Qxd5 {[%clk 0:01:17.1]} 0-1

[Event "*** MasterClass Titled Tuesday Blitz"]
[Site "Chess.com"]
[Date "2017.10.03"]
[Round "1"]
[White "Oleksandr_Bortnyk"]
[Black "JammyDodger91"]
[Result "1-0"]
[WhiteElo "2840"]
[BlackElo "2414"]
[TimeControl "180+2"]
[EndTime "13:07:55 PDT"]
[Termination "Oleksandr_Bortnyk won by resignation"]

1. e4 {[%clk 0:03:01.9]} 1... g6 {[%clk 0:03:00.7]} 2. d4 {[%clk 0:03:02.1]}
2... Bg7 {[%clk 0:03:02.2]} 3. Be3 {[%clk 0:03:03]} 3... d6 {[%clk 0:03:02.9]}
4. Nc3 {[%clk 0:03:03.8]} 4... a6 {[%clk 0:03:03.5]} 5. Qd2 {[%clk 0:03:03.6]}
5... b5 {[%clk 0:03:04.7]} 6. h3 {[%clk 0:03:04.8]} 6... Bb7 {[%clk 0:03:05.3]}
7. Bd3 {[%clk 0:03:05.7]} 7... Nd7 {[%clk 0:03:06.3]} 8. Nf3 {[%clk 0:03:06.9]}
8... c5 {[%clk 0:03:07.2]} 9. O-O {[%clk 0:03:06.1]} 9... cxd4 {[%clk
0:03:07.5]} 10. Bxd4 {[%clk 0:03:06.8]} 10... Bxd4 {[%clk 0:03:07.2]} 11. Nxd4
{[%clk 0:03:08.7]} 11... Ngf6 {[%clk 0:03:05.7]} 12. Qh6 {[%clk 0:03:08.6]}
12... Qb6 {[%clk 0:02:54]} 13. Nf3 {[%clk 0:03:09.4]} 13... b4 {[%clk
0:02:45.9]} 14. Ne2 {[%clk 0:02:43.5]} 14... Nxe4 {[%clk 0:02:40.9]} 15. Qg7
{[%clk 0:02:42.3]} 15... Rf8 {[%clk 0:02:31.1]} 16. Bxe4 {[%clk 0:02:42]} 16...
Bxe4 {[%clk 0:02:31.4]} 17. Ng5 {[%clk 0:02:43.9]} 17... Qc6 {[%clk 0:02:07.8]}
18. Rfe1 {[%clk 0:01:58.4]} 18... Nf6 {[%clk 0:01:56.4]} 19. Nd4 {[%clk
0:01:52.6]} 19... Qd5 {[%clk 0:01:52.2]} 20. Nxe4 {[%clk 0:01:52.8]} 20... Nxe4
{[%clk 0:01:53.4]} 21. Rad1 {[%clk 0:01:50.6]} 21... O-O-O {[%clk 0:01:29.3]}
22. Nb3 {[%clk 0:01:43.1]} 22... Qc6 {[%clk 0:01:16]} 23. Na5 {[%clk 0:01:40.7]}
23... Qc7 {[%clk 0:01:16.8]} 24. Rxe4 {[%clk 0:01:41.1]} 24... Qxa5 {[%clk
0:01:18]} 25. Rxe7 {[%clk 0:01:41.7]} 25... Qf5 {[%clk 0:01:14.8]} 26. Rxd6
{[%clk 0:01:39.6]} 26... Rxd6 {[%clk 0:01:11.7]} 27. Qxf8+ {[%clk 0:01:40.4]}
27... Rd8 {[%clk 0:01:13.5]} 28. Qxf7 {[%clk 0:01:41.5]} 28... Qxf7 {[%clk
0:01:05.9]} 29. Rxf7 {[%clk 0:01:43.4]} 29... Rd2 {[%clk 0:01:07.3]} 30. Rf4
{[%clk 0:01:38.9]} 30... a5 {[%clk 0:01:05.5]} 31. Rc4+ {[%clk 0:01:40.1]} 31...
Kd7 {[%clk 0:01:02]} 32. a3 {[%clk 0:01:42]} 32... bxa3 {[%clk 0:01:01.8]} 33.
bxa3 {[%clk 0:01:43.9]} 33... Kd6 {[%clk 0:01:00.3]} 34. Rc3 {[%clk 0:01:43.5]}
34... Kd5 {[%clk 0:00:45.6]} 35. Rc7 {[%clk 0:01:20.7]} 35... Kd6 {[%clk
0:00:41.2]} 36. Ra7 {[%clk 0:01:21.4]} 36... Rd5 {[%clk 0:00:39.7]} 37. Rxh7
{[%clk 0:01:22.3]} 37... Rc5 {[%clk 0:00:41.2]} 38. Rg7 {[%clk 0:01:20.2]} 38...
g5 {[%clk 0:00:41.6]} 39. a4 {[%clk 0:01:21.4]} 39... Ke6 {[%clk 0:00:39.6]} 40.
g3 {[%clk 0:01:21.9]} 40... Kf6 {[%clk 0:00:40.9]} 41. Ra7 {[%clk 0:01:23.1]}
41... Ke5 {[%clk 0:00:41.4]} 42. Kg2 {[%clk 0:01:24.2]} 42... Kd4 {[%clk
0:00:42.8]} 43. Kf3 {[%clk 0:01:22.3]} 43... Kc3 {[%clk 0:00:43.8]} 44. Kg4
{[%clk 0:01:23.7]} 44... Kb4 {[%clk 0:00:44.6]} 45. f4 {[%clk 0:01:24.8]} 45...
gxf4 {[%clk 0:00:45.3]} 46. gxf4 {[%clk 0:01:26.7]} 46... Kxa4 {[%clk
0:00:46.4]} 47. f5 {[%clk 0:01:28.4]} 47... Rxc2 {[%clk 0:00:47.9]} 48. f6
{[%clk 0:01:30]} 48... Rf2 {[%clk 0:00:49.1]} 49. f7 {[%clk 0:01:31.1]} 49...
Kb4 {[%clk 0:00:50.8]} 50. h4 {[%clk 0:01:29.7]} 50... a4 {[%clk 0:00:52.2]} 51.
h5 {[%clk 0:01:31.3]} 51... a3 {[%clk 0:00:53.9]} 52. h6 {[%clk 0:01:32.9]}
52... a2 {[%clk 0:00:53.9]} 53. Rxa2 {[%clk 0:01:28.8]} 53... Rxf7 {[%clk
0:00:54.6]} 54. Rh2 {[%clk 0:01:29.4]} 1-0

[Event "*** MasterClass Titled Tuesday Blitz"]
[Site "Chess.com"]
[Date "2017.10.03"]
[Round "1"]
[White "MatthewG-p4p"]
[Black "PulpanJ"]
[Result "0-1"]
[WhiteElo "2604"]
[BlackElo "2340"]
[TimeControl "180+2"]
[EndTime "13:07:58 PDT"]
[Termination "PulpanJ won by resignation"]

1. e4 {[%clk 0:02:54.1]} 1... c5 {[%clk 0:02:57.6]} 2. Nf3 {[%clk 0:02:54.9]}
2... d6 {[%clk 0:02:53.1]} 3. Bb5+ {[%clk 0:02:54.6]} 3... Bd7 {[%clk
0:02:52.5]} 4. c4 {[%clk 0:02:55.6]} 4... Nf6 {[%clk 0:02:48.3]} 5. Nc3 {[%clk
0:02:56.1]} 5... a6 {[%clk 0:02:49.1]} 6. Bxd7+ {[%clk 0:02:56.6]} 6... Nbxd7
{[%clk 0:02:51]} 7. O-O {[%clk 0:02:57.2]} 7... g6 {[%clk 0:02:51.1]} 8. d4
{[%clk 0:02:58.1]} 8... cxd4 {[%clk 0:02:53]} 9. Nxd4 {[%clk 0:02:59.9]} 9...
Bg7 {[%clk 0:02:54.9]} 10. Re1 {[%clk 0:03:00.8]} 10... O-O {[%clk 0:02:56.4]}
11. b3 {[%clk 0:03:02]} 11... Rc8 {[%clk 0:02:57.8]} 12. Be3 {[%clk 0:03:01.6]}
12... b5 {[%clk 0:02:54.6]} 13. Qe2 {[%clk 0:02:54]} 13... bxc4 {[%clk
0:02:55.6]} 14. bxc4 {[%clk 0:02:55.1]} 14... Ne5 {[%clk 0:02:55.6]} 15. Nd5
{[%clk 0:02:55]} 15... Nxc4 {[%clk 0:02:52.7]} 16. Rac1 {[%clk 0:02:48]} 16...
Nxd5 {[%clk 0:02:35.3]} 17. exd5 {[%clk 0:02:47.3]} 17... Nxe3 {[%clk
0:02:35.7]} 18. Qxe3 {[%clk 0:02:47]} 18... Rxc1 {[%clk 0:02:23.8]} 19. Rxc1
{[%clk 0:02:48.9]} 19... Qa5 {[%clk 0:02:15.6]} 20. Nc6 {[%clk 0:02:47.9]} 20...
Qxa2 {[%clk 0:02:14.4]} 21. Nxe7+ {[%clk 0:02:47.9]} 21... Kh8 {[%clk
0:02:14.8]} 22. h3 {[%clk 0:02:44]} 22... Qb2 {[%clk 0:02:04.6]} 23. Rc7 {[%clk
0:02:38]} 23... a5 {[%clk 0:01:53.9]} 24. Qf4 {[%clk 0:02:30.6]} 24... Qa1+
{[%clk 0:01:25.4]} 25. Rc1 {[%clk 0:02:29.8]} 25... Qe5 {[%clk 0:01:17.7]} 26.
Qxe5 {[%clk 0:02:26]} 26... Bxe5 {[%clk 0:01:19.6]} 27. Rc4 {[%clk 0:02:27.5]}
27... Rb8 {[%clk 0:01:12.2]} 28. g3 {[%clk 0:02:26.3]} 28... Rb4 {[%clk
0:01:09.7]} 29. Rc8+ {[%clk 0:02:26.9]} 29... Kg7 {[%clk 0:01:10.6]} 30. Nc6
{[%clk 0:02:28.6]} 30... Rb5 {[%clk 0:01:09.3]} 31. Ra8 {[%clk 0:02:29.1]} 31...
Bc3 {[%clk 0:01:09.1]} 32. Ra7 {[%clk 0:02:22.3]} 32... Rxd5 {[%clk 0:01:00.6]}
33. Nd8 {[%clk 0:02:23.5]} 33... Rf5 {[%clk 0:01:00.8]} 34. Ra6 {[%clk
0:02:16.7]} 34... Bd4 {[%clk 0:00:56.5]} 35. Nb7 {[%clk 0:02:12]} 35... Bxf2+
{[%clk 0:00:55.6]} 36. Kg2 {[%clk 0:02:12.8]} 36... Bc5 {[%clk 0:00:55.4]} 37.
Rxa5 {[%clk 0:02:13.3]} 37... Rf2+ {[%clk 0:00:56.7]} 38. Kh1 {[%clk 0:02:14.8]}
38... Rf3 {[%clk 0:00:58]} 39. Kg2 {[%clk 0:02:15.5]} 39... Rc3 {[%clk
0:00:59.4]} 40. Ra6 {[%clk 0:02:12.3]} 40... Rc2+ {[%clk 0:00:59.5]} 41. Kf3
{[%clk 0:02:13.2]} 41... Rc3+ {[%clk 0:00:59.3]} 42. Kg2 {[%clk 0:02:13.1]}
42... Rd3 {[%clk 0:01:00.6]} 43. Rc6 {[%clk 0:02:13.3]} 43... Rd5 {[%clk
0:01:01.9]} 44. Rc7 {[%clk 0:02:13.2]} 44... Kf8 {[%clk 0:00:48]} 45. Nd8 {[%clk
0:02:09.8]} 45... Rd2+ {[%clk 0:00:48.3]} 46. Kh1 {[%clk 0:02:10.8]} 46... Rf2
{[%clk 0:00:48]} 47. Nb7 {[%clk 0:02:09.9]} 47... Rf5 {[%clk 0:00:42.6]} 48. Kg2
{[%clk 0:02:01.7]} 48... h5 {[%clk 0:00:41.9]} 49. g4 {[%clk 0:01:55.7]} 49...
hxg4 {[%clk 0:00:38.2]} 50. hxg4 {[%clk 0:01:57]} 50... Rf4 {[%clk 0:00:33.9]}
51. Kg3 {[%clk 0:01:57.2]} 51... Rc4 {[%clk 0:00:31.5]} 52. Kh3 {[%clk
0:01:53.9]} 52... Rc3+ {[%clk 0:00:31.1]} 53. Kg2 {[%clk 0:01:54.5]} 53... Rc2+
{[%clk 0:00:32]} 54. Kh3 {[%clk 0:01:55.7]} 54... g5 {[%clk 0:00:27.5]} 55. Nxd6
{[%clk 0:01:55.8]} 55... Rh2+ {[%clk 0:00:28.6]} 0-1

[Event "*** MasterClass Titled Tuesday Blitz"]
[Site "Chess.com"]
[Date "2017.10.03"]
[Round "1"]
[White "silverback96"]
[Black "Keaton87"]
[Result "0-1"]
[WhiteElo "2119"]
[BlackElo "2463"]
[TimeControl "180+2"]
[EndTime "13:08:01 PDT"]
[Termination "Keaton87 won on time"]

1. d4 {[%clk 0:02:51.3]} 1... Nf6 {[%clk 0:03:00.3]} 2. c4 {[%clk 0:02:50.6]}
2... g6 {[%clk 0:03:01.3]} 3. g3 {[%clk 0:02:51.5]} 3... d5 {[%clk 0:03:01.9]}
4. cxd5 {[%clk 0:02:52.2]} 4... Nxd5 {[%clk 0:03:03.8]} 5. Nf3 {[%clk
0:02:54.1]} 5... Nb6 {[%clk 0:03:05.4]} 6. Bg2 {[%clk 0:02:56]} 6... Bg7 {[%clk
0:03:06.8]} 7. O-O {[%clk 0:02:56]} 7... Nc6 {[%clk 0:03:08.3]} 8. Nc3 {[%clk
0:02:33.9]} 8... Nxd4 {[%clk 0:03:08.2]} 9. Nxd4 {[%clk 0:02:34.8]} 9... Qxd4
{[%clk 0:03:09.4]} 10. Nb5 {[%clk 0:02:34]} 10... Qxd1 {[%clk 0:02:57.2]} 11.
Rxd1 {[%clk 0:02:34.1]} 11... Be5 {[%clk 0:02:57.8]} 12. Bf4 {[%clk 0:02:31]}
12... Bxf4 {[%clk 0:02:38.1]} 13. gxf4 {[%clk 0:02:32.9]} 13... O-O {[%clk
0:02:39.7]} 14. Nxc7 {[%clk 0:02:33.3]} 14... Rb8 {[%clk 0:02:41.1]} 15. Nb5
{[%clk 0:02:12.4]} 15... a6 {[%clk 0:02:40.7]} 16. Nd4 {[%clk 0:02:10.9]} 16...
Bg4 {[%clk 0:02:37.7]} 17. a4 {[%clk 0:02:07.4]} 17... Rfd8 {[%clk 0:02:37.4]}
18. b3 {[%clk 0:01:41.1]} 18... Rd6 {[%clk 0:02:33.1]} 19. a5 {[%clk 0:01:14.1]}
19... Nd5 {[%clk 0:02:33.9]} 20. Bxd5 {[%clk 0:00:31.1]} 20... Rxd5 {[%clk
0:02:35.8]} 21. f3 {[%clk 0:00:32]} 21... Bd7 {[%clk 0:02:27.1]} 22. Kf2 {[%clk
0:00:33.2]} 22... Rc8 {[%clk 0:02:27.5]} 23. Ke3 {[%clk 0:00:23.6]} 23... Rc3+
{[%clk 0:02:28]} 24. Rd3 {[%clk 0:00:24.4]} 24... Rxd3+ {[%clk 0:02:19.7]} 25.
Kxd3 {[%clk 0:00:26]} 25... Rh5 {[%clk 0:02:20.6]} 26. Rh1 {[%clk 0:00:23.3]}
26... Rxa5 {[%clk 0:02:20.9]} 27. Rc1 {[%clk 0:00:21.1]} 27... Rh5 {[%clk
0:01:59.8]} 28. Rc7 {[%clk 0:00:21.2]} 28... Bb5+ {[%clk 0:01:28.9]} 29. Ke3
{[%clk 0:00:19.9]} 29... e5 {[%clk 0:01:20.6]} 30. Nxb5 {[%clk 0:00:17.3]} 30...
exf4+ {[%clk 0:01:21.5]} 31. Kxf4 {[%clk 0:00:18.3]} 31... Rxb5 {[%clk 0:01:23]}
32. Kg3 {[%clk 0:00:18]} 32... Rxb3 {[%clk 0:01:23.2]} 33. e4 {[%clk 0:00:16.7]}
33... a5 {[%clk 0:01:24.4]} 34. e5 {[%clk 0:00:17.1]} 34... a4 {[%clk
0:01:25.7]} 35. Kg4 {[%clk 0:00:11.8]} 35... h6 {[%clk 0:01:25.4]} 36. f4 {[%clk
0:00:12.1]} 36... a3 {[%clk 0:01:26.1]} 37. Rc8+ {[%clk 0:00:11.3]} 37... Kg7
{[%clk 0:01:26.7]} 38. Ra8 {[%clk 0:00:12]} 38... Rb4 {[%clk 0:01:21.5]} 39.
Rxa3 {[%clk 0:00:09.5]} 39... g5 {[%clk 0:01:21.9]} 0-1

[Event "*** MasterClass Titled Tuesday Blitz"]
[Site "Chess.com"]
[Date "2017.10.03"]
[Round "1"]
[White "GulamaliRises"]
[Black "VladimirBelous"]
[Result "0-1"]
[WhiteElo "2339"]
[BlackElo "2636"]
[TimeControl "180+2"]
[EndTime "13:08:05 PDT"]
[Termination "VladimirBelous won by resignation"]

1. e4 {[%clk 0:03:00.9]} 1... c5 {[%clk 0:03:00.7]} 2. Nf3 {[%clk 0:02:57.1]}
2... Nc6 {[%clk 0:03:02.3]} 3. Nc3 {[%clk 0:02:56.2]} 3... g6 {[%clk 0:03:02.1]}
4. d4 {[%clk 0:02:57.2]} 4... cxd4 {[%clk 0:03:03.7]} 5. Nxd4 {[%clk 0:02:58.8]}
5... Bg7 {[%clk 0:03:05.3]} 6. Nb3 {[%clk 0:02:59.6]} 6... Nf6 {[%clk
0:03:03.4]} 7. g3 {[%clk 0:02:57.5]} 7... O-O {[%clk 0:03:04.4]} 8. Bg2 {[%clk
0:02:58.6]} 8... b6 {[%clk 0:03:06]} 9. O-O {[%clk 0:02:58.3]} 9... Ba6 {[%clk
0:02:58.3]} 10. Re1 {[%clk 0:02:58.5]} 10... Rc8 {[%clk 0:02:59.6]} 11. h3
{[%clk 0:02:42.1]} 11... d6 {[%clk 0:02:57.4]} 12. Nd5 {[%clk 0:02:39.8]} 12...
Nd7 {[%clk 0:02:50.4]} 13. c3 {[%clk 0:02:38.4]} 13... Nde5 {[%clk 0:02:47.5]}
14. Bg5 {[%clk 0:02:35.1]} 14... h6 {[%clk 0:02:43.1]} 15. Bc1 {[%clk 0:02:35]}
15... Nd3 {[%clk 0:02:43.8]} 16. Re3 {[%clk 0:02:34.9]} 16... Nxc1 {[%clk
0:02:39.5]} 17. Rxc1 {[%clk 0:02:36.8]} 17... Ne5 {[%clk 0:02:40.3]} 18. Rc2
{[%clk 0:02:37]} 18... e6 {[%clk 0:02:35.6]} 19. Nb4 {[%clk 0:02:37.1]} 19...
Bb7 {[%clk 0:02:36]} 20. Re1 {[%clk 0:02:34.7]} 20... Nc4 {[%clk 0:02:31.2]} 21.
Nd2 {[%clk 0:02:27.6]} 21... Ne5 {[%clk 0:02:26]} 22. Nf3 {[%clk 0:02:24.1]}
22... Nxf3+ {[%clk 0:02:20]} 23. Bxf3 {[%clk 0:02:24.3]} 23... Qe7 {[%clk
0:02:17.2]} 24. Rd2 {[%clk 0:02:24.5]} 24... Rfd8 {[%clk 0:02:18.5]} 25. Qe2
{[%clk 0:02:23.7]} 25... h5 {[%clk 0:02:14.5]} 26. h4 {[%clk 0:02:22.1]} 26...
Bh6 {[%clk 0:02:15.5]} 27. Rdd1 {[%clk 0:02:22.3]} 27... Qc7 {[%clk 0:02:15.5]}
28. Nc2 {[%clk 0:02:14.8]} 28... a6 {[%clk 0:02:12.8]} 29. Ne3 {[%clk
0:02:06.4]} 29... b5 {[%clk 0:02:13.4]} 30. Rd3 {[%clk 0:01:57.3]} 30... Qb6
{[%clk 0:02:06.7]} 31. Red1 {[%clk 0:01:54.4]} 31... Bg7 {[%clk 0:02:08.1]} 32.
Ng2 {[%clk 0:01:49.4]} 32... Be5 {[%clk 0:02:06.8]} 33. Kh2 {[%clk 0:01:44.8]}
33... a5 {[%clk 0:02:08.3]} 34. Qe3 {[%clk 0:01:41.3]} 34... Qc7 {[%clk
0:01:52]} 35. Be2 {[%clk 0:01:38.3]} 35... Bc6 {[%clk 0:01:45.7]} 36. f4 {[%clk
0:01:38.3]} 36... Bg7 {[%clk 0:01:47]} 37. Bf3 {[%clk 0:01:38.4]} 37... b4
{[%clk 0:01:45.4]} 38. cxb4 {[%clk 0:01:38.7]} 38... axb4 {[%clk 0:01:46.6]} 39.
Qd2 {[%clk 0:01:40]} 39... Qb8 {[%clk 0:01:44.8]} 40. b3 {[%clk 0:01:36.4]}
40... Bc3 {[%clk 0:01:39.3]} 41. Qf2 {[%clk 0:01:29.5]} 41... Bb5 {[%clk
0:01:39]} 42. Re3 {[%clk 0:01:29.2]} 42... Qa8 {[%clk 0:01:36.2]} 43. g4 {[%clk
0:01:29.6]} 43... hxg4 {[%clk 0:01:35.4]} 44. Bxg4 {[%clk 0:01:31.1]} 44... d5
{[%clk 0:01:34.3]} 45. f5 {[%clk 0:01:29.3]} 45... d4 {[%clk 0:01:06.3]} 46.
fxg6 {[%clk 0:01:29.5]} 46... f5 {[%clk 0:01:05.6]} 47. Rg3 {[%clk 0:01:21.1]}
47... Qxe4 {[%clk 0:01:06]} 48. Nf4 {[%clk 0:01:01]} 48... fxg4 {[%clk
0:01:05.6]} 49. Nh5 {[%clk 0:00:59.9]} 49... Qf5 {[%clk 0:01:03.7]} 50. Nf6+
{[%clk 0:00:51.3]} 50... Kg7 {[%clk 0:01:04.4]} 51. Nxg4 {[%clk 0:00:52.9]}
51... Qxf2+ {[%clk 0:01:03.9]} 52. Nxf2 {[%clk 0:00:54.8]} 52... Rh8 {[%clk
0:01:03.5]} 53. Kh3 {[%clk 0:00:53.6]} 53... e5 {[%clk 0:01:03.9]} 0-1

[Event "*** MasterClass Titled Tuesday Blitz"]
[Site "Chess.com"]
[Date "2017.10.03"]
[Round "1"]
[White "DiogenesSinopeus"]
[Black "GM_dmitrij"]
[Result "0-1"]
[WhiteElo "2381"]
[BlackElo "2657"]
[TimeControl "180+2"]
[EndTime "13:08:06 PDT"]
[Termination "GM_dmitrij won by resignation"]

1. d4 {[%clk 0:03:01.9]} 1... d5 {[%clk 0:02:49.1]} 2. c4 {[%clk 0:03:02.7]}
2... e6 {[%clk 0:02:47.3]} 3. Nc3 {[%clk 0:03:03.4]} 3... Bb4 {[%clk 0:02:48]}
4. e3 {[%clk 0:03:03.3]} 4... Nf6 {[%clk 0:02:48.5]} 5. a3 {[%clk 0:03:02.2]}
5... Bxc3+ {[%clk 0:02:49.1]} 6. bxc3 {[%clk 0:03:04.1]} 6... O-O {[%clk
0:02:50.7]} 7. cxd5 {[%clk 0:03:03.3]} 7... exd5 {[%clk 0:02:52.6]} 8. Bd3
{[%clk 0:03:04.5]} 8... c5 {[%clk 0:02:53.9]} 9. Ne2 {[%clk 0:03:05.7]} 9... Nc6
{[%clk 0:02:54.5]} 10. O-O {[%clk 0:03:06.9]} 10... c4 {[%clk 0:02:38.4]} 11.
Bb1 {[%clk 0:02:39.7]} 11... Ne7 {[%clk 0:02:38.9]} 12. Ng3 {[%clk 0:02:27.7]}
12... Be6 {[%clk 0:02:37.3]} 13. f3 {[%clk 0:02:24.5]} 13... Ne8 {[%clk
0:02:14.7]} 14. e4 {[%clk 0:02:07.9]} 14... Qd7 {[%clk 0:02:14.6]} 15. Ra2
{[%clk 0:01:56.9]} 15... f5 {[%clk 0:02:09.6]} 16. e5 {[%clk 0:01:53.1]} 16...
b5 {[%clk 0:02:05.6]} 17. a4 {[%clk 0:01:47.7]} 17... Nc7 {[%clk 0:01:47.2]} 18.
Ba3 {[%clk 0:01:44.8]} 18... Rf7 {[%clk 0:01:39.5]} 19. Ne2 {[%clk 0:01:42.3]}
19... f4 {[%clk 0:01:37.1]} 20. Qc1 {[%clk 0:01:34.2]} 20... g5 {[%clk
0:01:20.4]} 21. h4 {[%clk 0:01:34]} 21... h6 {[%clk 0:01:20]} 22. Bxe7 {[%clk
0:01:12.5]} 22... Qxe7 {[%clk 0:01:19.9]} 23. axb5 {[%clk 0:01:07.6]} 23... Nxb5
{[%clk 0:01:21.8]} 24. Qc2 {[%clk 0:01:00]} 24... Rg7 {[%clk 0:01:14.6]} 25. h5
{[%clk 0:00:54.4]} 25... Rf8 {[%clk 0:01:09.5]} 26. Qa4 {[%clk 0:00:53.8]} 26...
Nc7 {[%clk 0:00:52.9]} 27. Bg6 {[%clk 0:00:54.8]} 27... Bf7 {[%clk 0:00:43.2]}
28. Bxf7+ {[%clk 0:00:54]} 28... Rfxf7 {[%clk 0:00:45.1]} 29. Qxa7 {[%clk
0:00:53.7]} 29... g4 {[%clk 0:00:45.4]} 30. Qc5 {[%clk 0:00:47.2]} 30... Qh4
{[%clk 0:00:40]} 31. e6 {[%clk 0:00:33]} 31... Nxe6 {[%clk 0:00:26.9]} 32. Qxd5
{[%clk 0:00:33.7]} 32... gxf3 {[%clk 0:00:20.7]} 33. Qxf3 {[%clk 0:00:19.1]}
33... Ng5 {[%clk 0:00:21.9]} 34. Ra8+ {[%clk 0:00:19.8]} 34... Kh7 {[%clk
0:00:23.3]} 35. Qf2 {[%clk 0:00:17.3]} 35... Nh3+ {[%clk 0:00:23.9]} 0-1